[Event "Titled Tuesday Blitz June 28 Late 2022"]
[White "Leenhouts, Koen"]
[Black "Rostovtsev, Dmitry"]
[WhiteFideId "1008439"]
[BlackFideId "34278320"]
[WhiteElo "2409"]
[BlackElo "2311"]
[Result "1-0"]
[Round "09"]
[TimeControl "180+1"]
[Date "2022.06.28"]
[WhiteClock "0:00:07"]
[BlackClock "0:00:02"]

1. d4 {[%clk 0:02:51]}  Nf6 {[%clk 0:02:59]} 2. c4 {[%clk 0:02:49]}  g6 {[%clk 0:02:59]} 3. Nc3 {[%clk 0:02:48]}  Bg7 {[%clk 0:02:59]} 4. e4 {[%clk 0:02:47]}  d6 {[%clk 0:02:59]} 5. f3 {[%clk 0:02:47]}  O-O {[%clk 0:02:58]} 6. Bg5 {[%clk 0:02:48]}  c5 {[%clk 0:02:57]} 7. d5 {[%clk 0:02:47]}  e6 {[%clk 0:02:54]} 8. Qd2 {[%clk 0:02:46]}  exd5 {[%clk 0:02:54]} 9. cxd5 {[%clk 0:02:47]}  h6 {[%clk 0:02:51]} 10. Be3 {[%clk 0:02:46]}  a6 {[%clk 0:02:49]} 11. a4 {[%clk 0:02:40]}  Re8 {[%clk 0:02:46]} 12. Bd3 {[%clk 0:02:33]}  h5 {[%clk 0:02:30]} 13. Nge2 {[%clk 0:02:32]}  Nbd7 {[%clk 0:02:30]} 14. O-O {[%clk 0:02:31]}  Ne5 {[%clk 0:02:30]} 15. Rae1 {[%clk 0:02:25]}  Nxd3 {[%clk 0:02:17]} 16. Qxd3 {[%clk 0:02:24]}  b5 {[%clk 0:02:18]} 17. axb5 {[%clk 0:02:19]}  axb5 {[%clk 0:02:19]} 18. Qxb5 {[%clk 0:02:14]}  Ba6 {[%clk 0:02:19]} 19. Qb3 {[%clk 0:02:12]}  Nd7 {[%clk 0:02:15]} 20. Qc2 {[%clk 0:02:03]}  Ne5 {[%clk 0:02:14]} 21. Kh1 {[%clk 0:01:40]}  Qb6 {[%clk 0:02:08]} 22. f4 {[%clk 0:01:31]}  Nd3 {[%clk 0:02:03]} 23. Rb1 {[%clk 0:01:22]}  f5 {[%clk 0:01:36]} 24. Bg1 {[%clk 0:01:11]}  fxe4 {[%clk 0:01:28]} 25. f5 {[%clk 0:01:12]}  e3 {[%clk 0:01:19]} 26. fxg6 {[%clk 0:01:06]}  Nb4 {[%clk 0:01:17]} 27. Qf5 {[%clk 0:01:02]}  Qc7 {[%clk 0:01:01]} 28. Qf7+ {[%clk 0:00:56]}  Qxf7 {[%clk 0:01:01]} 29. gxf7+ {[%clk 0:00:57]}  Kh7 {[%clk 0:01:01]} 30. fxe8=Q {[%clk 0:00:57]}  Rxe8 {[%clk 0:01:02]} 31. Rf7 {[%clk 0:00:48]}  Kg6 {[%clk 0:00:57]} 32. Rd7 {[%clk 0:00:47]}  Be5 {[%clk 0:00:57]} 33. Bxe3 {[%clk 0:00:42]}  Bd3 {[%clk 0:00:46]} 34. Rd1 {[%clk 0:00:37]}  Bxc3 {[%clk 0:00:45]} 35. Nxc3 {[%clk 0:00:29]}  Rxe3 {[%clk 0:00:45]} 36. Rxd6+ {[%clk 0:00:27]}  Kf5 {[%clk 0:00:44]} 37. Re6 {[%clk 0:00:23]}  Rxe6 {[%clk 0:00:38]} 38. dxe6 {[%clk 0:00:24]}  Kxe6 {[%clk 0:00:39]} 39. Re1+ {[%clk 0:00:23]}  Kf5 {[%clk 0:00:39]} 40. Re8 {[%clk 0:00:22]}  c4 {[%clk 0:00:38]} 41. h4 {[%clk 0:00:20]}  Kg4 {[%clk 0:00:36]} 42. Rb8 {[%clk 0:00:15]}  Nc2 {[%clk 0:00:36]} 43. b3 {[%clk 0:00:14]}  Ne3 {[%clk 0:00:25]} 44. bxc4 {[%clk 0:00:12]}  Bxc4 {[%clk 0:00:26]} 45. Kh2 {[%clk 0:00:10]}  Kxh4 {[%clk 0:00:20]} 46. Rb4 {[%clk 0:00:10]}  Ng4+ {[%clk 0:00:18]} 47. Kg1 {[%clk 0:00:09]}  Bd3 {[%clk 0:00:18]} 48. Nd5 {[%clk 0:00:08]}  Kg5 {[%clk 0:00:16]} 49. Rd4 {[%clk 0:00:06]}  Bf5 {[%clk 0:00:16]} 50. Nc7 {[%clk 0:00:06]}  Ne5 {[%clk 0:00:14]} 51. Rd5 {[%clk 0:00:06]}  Ng4 {[%clk 0:00:13]} 52. Ne6+ {[%clk 0:00:05]}  Kf6 {[%clk 0:00:11]} 53. Nf4 {[%clk 0:00:04]}  h4 {[%clk 0:00:11]} 54. Ra5 {[%clk 0:00:03]}  Bd7 {[%clk 0:00:05]} 55. Nd5+ {[%clk 0:00:03]}  Kg6 {[%clk 0:00:04]} 56. Nc3 {[%clk 0:00:04]}  Bf5 {[%clk 0:00:04]} 57. Nd5 {[%clk 0:00:04]}  Bd7 {[%clk 0:00:03]} 58. Ra6+ {[%clk 0:00:05]}  Kg5 {[%clk 0:00:03]} 59. Nb6 {[%clk 0:00:04]}  Bf5 {[%clk 0:00:03]} 60. Ra5 {[%clk 0:00:05]}  Kf4 {[%clk 0:00:03]} 61. Nc4 {[%clk 0:00:06]}  Be4 {[%clk 0:00:03]} 62. Ra4 {[%clk 0:00:06]}  Kg3 {[%clk 0:00:03]} 63. Nd2 {[%clk 0:00:05]}  Bf5 {[%clk 0:00:02]} 64. Ra3+ {[%clk 0:00:06]}  Kf4 {[%clk 0:00:02]} 65. Nf3 {[%clk 0:00:06]}  h3 {[%clk 0:00:02]} 66. gxh3 {[%clk 0:00:06]}  Ne3 {[%clk 0:00:03]} 67. Nd4 {[%clk 0:00:05]}  Be4 {[%clk 0:00:03]} 68. Ne2+ {[%clk 0:00:05]}  Kf3 {[%clk 0:00:02]} 69. Nd4+ {[%clk 0:00:06]}  Kf4 {[%clk 0:00:03]} 70. Ne2+ {[%clk 0:00:06]}  Kf3 {[%clk 0:00:03]} 71. Nc3 {[%clk 0:00:06]}  Bf5 {[%clk 0:00:02]} 72. Nd1 {[%clk 0:00:06]}  Bxh3 {[%clk 0:00:01]} 73. Rxe3+ {[%clk 0:00:07]}  Kg4 {[%clk 0:00:02]} 74. Rc3 {[%clk 0:00:07]} 1-0


[Site "https://www.chess.com"]

[Event "Titled Tuesday Blitz June 28 Late 2022"]
[White "Leiva, Gianmarco"]
[Black "Toncheva, Nadya"]
[WhiteFideId "3804399"]
[BlackFideId "2924056"]
[WhiteElo "2323"]
[BlackElo "1888"]
[Result "1-0"]
[Round "09"]
[TimeControl "180+1"]
[Date "2022.06.29"]
[WhiteClock "0:00:05"]
[BlackClock "0:00:06"]

1. e4 {[%clk 0:02:05]}  c5 {[%clk 0:02:58]} 2. Nf3 {[%clk 0:02:04]}  d6 {[%clk 0:02:58]} 3. d4 {[%clk 0:02:02]}  cxd4 {[%clk 0:02:58]} 4. Nxd4 {[%clk 0:02:03]}  Nf6 {[%clk 0:02:59]} 5. Nc3 {[%clk 0:01:56]}  Nc6 {[%clk 0:02:59]} 6. Bg5 {[%clk 0:01:43]}  e6 {[%clk 0:02:59]} 7. Qd2 {[%clk 0:01:38]}  a6 {[%clk 0:02:59]} 8. O-O-O {[%clk 0:01:22]}  Bd7 {[%clk 0:02:59]} 9. f3 {[%clk 0:01:12]}  b5 {[%clk 0:02:53]} 10. Kb1 {[%clk 0:00:51]}  Rc8 {[%clk 0:02:42]} 11. g4 {[%clk 0:00:49]}  Be7 {[%clk 0:02:08]} 12. h4 {[%clk 0:00:44]}  Qc7 {[%clk 0:01:38]} 13. Be3 {[%clk 0:00:37]}  Nxd4 {[%clk 0:01:29]} 14. Bxd4 {[%clk 0:00:37]}  e5 {[%clk 0:01:30]} 15. Be3 {[%clk 0:00:33]}  Be6 {[%clk 0:01:30]} 16. g5 {[%clk 0:00:30]}  Nd7 {[%clk 0:01:30]} 17. Bh3 {[%clk 0:00:27]}  b4 {[%clk 0:01:13]} 18. Nd5 {[%clk 0:00:26]}  Bxd5 {[%clk 0:01:07]} 19. Qxd5 {[%clk 0:00:26]}  Qxc2+ {[%clk 0:01:01]} 20. Ka1 {[%clk 0:00:27]}  Qe2 {[%clk 0:00:25]} 21. Rde1 {[%clk 0:00:05]}  Qb5 {[%clk 0:00:24]} 22. Qxb5 {[%clk 0:00:03]}  axb5 {[%clk 0:00:25]} 23. Rc1 {[%clk 0:00:03]}  Rc4 {[%clk 0:00:15]} 24. Rxc4 {[%clk 0:00:03]}  bxc4 {[%clk 0:00:15]} 25. Rc1 {[%clk 0:00:03]}  Nc5 {[%clk 0:00:12]} 26. Rxc4 {[%clk 0:00:03]}  O-O {[%clk 0:00:10]} 27. Rxb4 {[%clk 0:00:02]}  Ne6 {[%clk 0:00:08]} 28. Rb7 {[%clk 0:00:02]}  Rc8 {[%clk 0:00:08]} 29. Rxe7 {[%clk 0:00:02]}  Kf8 {[%clk 0:00:07]} 30. Bxe6 {[%clk 0:00:01]}  fxe6 {[%clk 0:00:06]} 31. Rxe6 {[%clk 0:00:02]}  Rc6 {[%clk 0:00:06]} 32. Rxd6 {[%clk 0:00:02]}  Rxd6 {[%clk 0:00:05]} 33. Bc5 {[%clk 0:00:02]}  Ke7 {[%clk 0:00:05]} 34. b4 {[%clk 0:00:03]}  Ke6 {[%clk 0:00:06]} 35. Bxd6 {[%clk 0:00:03]}  Kxd6 {[%clk 0:00:05]} 36. Kb2 {[%clk 0:00:04]}  Kc6 {[%clk 0:00:05]} 37. Kb3 {[%clk 0:00:05]}  Kb5 {[%clk 0:00:06]} 38. a4+ {[%clk 0:00:05]} 1-0


[Site "https://www.chess.com"]

[Event "Titled Tuesday Blitz June 28 Late 2022"]
[White "Nikologorsky, Matfei"]
[Black "Bobadilla Viera, Jorge Samuel"]
[WhiteFideId "24102474"]
[BlackFideId "3906353"]
[WhiteElo "2231"]
[BlackElo "2202"]
[Result "0-1"]
[Round "09"]
[TimeControl "180+1"]
[Date "2022.06.29"]
[WhiteClock "0:00:06"]
[BlackClock "0:01:20"]

1. e4 {[%clk 0:03:00]}  c5 {[%clk 0:02:57]} 2. Nf3 {[%clk 0:03:00]}  d6 {[%clk 0:02:57]} 3. d4 {[%clk 0:03:01]}  cxd4 {[%clk 0:02:58]} 4. Nxd4 {[%clk 0:03:01]}  Nf6 {[%clk 0:02:58]} 5. Nc3 {[%clk 0:03:01]}  a6 {[%clk 0:02:59]} 6. h3 {[%clk 0:03:01]}  e6 {[%clk 0:02:59]} 7. g4 {[%clk 0:03:01]}  Be7 {[%clk 0:02:59]} 8. g5 {[%clk 0:03:00]}  Nfd7 {[%clk 0:02:59]} 9. Be3 {[%clk 0:03:00]}  b5 {[%clk 0:02:59]} 10. h4 {[%clk 0:02:55]}  Bb7 {[%clk 0:02:58]} 11. Bg2 {[%clk 0:02:52]}  Nc6 {[%clk 0:02:58]} 12. f4 {[%clk 0:02:40]}  O-O {[%clk 0:02:49]} 13. Qg4 {[%clk 0:02:37]}  Rc8 {[%clk 0:02:19]} 14. a3 {[%clk 0:02:29]}  Nxd4 {[%clk 0:02:15]} 15. Bxd4 {[%clk 0:02:29]}  e5 {[%clk 0:02:15]} 16. Be3 {[%clk 0:02:10]}  exf4 {[%clk 0:02:13]} 17. Bxf4 {[%clk 0:02:10]}  Ne5 {[%clk 0:02:13]} 18. Qg3 {[%clk 0:02:08]}  Qa5 {[%clk 0:01:56]} 19. O-O {[%clk 0:02:03]}  Ng6 {[%clk 0:01:50]} 20. h5 {[%clk 0:01:52]}  Nxf4 {[%clk 0:01:49]} 21. Rxf4 {[%clk 0:01:53]}  b4 {[%clk 0:01:46]} 22. Rf5 {[%clk 0:01:43]}  Qb6+ {[%clk 0:01:44]} 23. Kh2 {[%clk 0:01:40]}  bxc3 {[%clk 0:01:44]} 24. bxc3 {[%clk 0:01:39]}  Rc5 {[%clk 0:01:42]} 25. Raf1 {[%clk 0:01:28]}  Bc8 {[%clk 0:01:40]} 26. g6 {[%clk 0:01:10]}  Bxf5 {[%clk 0:01:38]} 27. exf5 {[%clk 0:01:09]}  Bf6 {[%clk 0:01:38]} 28. Kh1 {[%clk 0:01:05]}  Rxc3 {[%clk 0:01:36]} 29. Bf3 {[%clk 0:00:44]}  Qd4 {[%clk 0:01:29]} 30. gxf7+ {[%clk 0:00:29]}  Rxf7 {[%clk 0:01:26]} 31. Qe1 {[%clk 0:00:13]}  Be5 {[%clk 0:01:23]} 32. Kg2 {[%clk 0:00:07]}  Rxf5 {[%clk 0:01:20]} 33. Bd5+ {[%clk 0:00:06]}  Qxd5+ {[%clk 0:01:20]} 0-1


[Site "https://www.chess.com"]

[Event "Titled Tuesday Blitz June 28 Late 2022"]
[White "Ozates, Tuna"]
[Black "Adewumi, Tanitoluwa"]
[WhiteFideId "6354521"]
[BlackFideId "30966396"]
[WhiteElo "1887"]
[BlackElo "2640"]
[Result "1-0"]
[Round "09"]
[TimeControl "180+1"]
[Date "2022.06.29"]
[WhiteClock "0:00:07"]
[BlackClock "0:00:02"]

1. e4 {[%clk 0:03:00]}  c5 {[%clk 0:02:44]} 2. Nf3 {[%clk 0:02:57]}  e6 {[%clk 0:02:43]} 3. d4 {[%clk 0:02:55]}  cxd4 {[%clk 0:02:42]} 4. Nxd4 {[%clk 0:02:56]}  Nc6 {[%clk 0:02:41]} 5. Nc3 {[%clk 0:02:53]}  Qc7 {[%clk 0:02:40]} 6. g3 {[%clk 0:02:50]}  a6 {[%clk 0:02:39]} 7. Bg2 {[%clk 0:02:50]}  d6 {[%clk 0:02:39]} 8. O-O {[%clk 0:02:50]}  Be7 {[%clk 0:02:39]} 9. Re1 {[%clk 0:02:50]}  Bd7 {[%clk 0:02:39]} 10. Be3 {[%clk 0:02:48]}  Nf6 {[%clk 0:02:38]} 11. h3 {[%clk 0:02:48]}  O-O {[%clk 0:02:36]} 12. g4 {[%clk 0:02:49]}  Nxd4 {[%clk 0:02:29]} 13. Bxd4 {[%clk 0:02:47]}  e5 {[%clk 0:02:30]} 14. Be3 {[%clk 0:02:25]}  Be6 {[%clk 0:02:24]} 15. g5 {[%clk 0:02:25]}  Nd7 {[%clk 0:02:21]} 16. Qh5 {[%clk 0:02:17]}  Rfe8 {[%clk 0:02:16]} 17. Rad1 {[%clk 0:02:15]}  Nf8 {[%clk 0:02:01]} 18. f4 {[%clk 0:02:06]}  exf4 {[%clk 0:02:00]} 19. Bxf4 {[%clk 0:02:07]}  Ng6 {[%clk 0:02:00]} 20. Be3 {[%clk 0:02:03]}  b5 {[%clk 0:01:51]} 21. Re2 {[%clk 0:01:48]}  b4 {[%clk 0:01:49]} 22. Nd5 {[%clk 0:01:48]}  Bxd5 {[%clk 0:01:46]} 23. Rxd5 {[%clk 0:01:49]}  Qc4 {[%clk 0:01:33]} 24. b3 {[%clk 0:01:44]}  Qc3 {[%clk 0:01:32]} 25. Kh2 {[%clk 0:01:09]}  Bd8 {[%clk 0:01:22]} 26. Bd4 {[%clk 0:01:01]}  Qc8 {[%clk 0:01:19]} 27. Rf5 {[%clk 0:00:58]}  Bc7 {[%clk 0:01:09]} 28. Rxf7 {[%clk 0:00:42]}  Kxf7 {[%clk 0:01:01]} 29. Qxh7 {[%clk 0:00:42]}  d5+ {[%clk 0:01:00]} 30. Kh1 {[%clk 0:00:39]}  Rg8 {[%clk 0:00:31]} 31. Rf2+ {[%clk 0:00:27]}  Bf4 {[%clk 0:00:22]} 32. Qh5 {[%clk 0:00:15]}  Qe6 {[%clk 0:00:11]} 33. Rxf4+ {[%clk 0:00:15]}  Ke7 {[%clk 0:00:12]} 34. Bc5+ {[%clk 0:00:07]}  Kd7 {[%clk 0:00:11]} 35. exd5 {[%clk 0:00:06]}  Qe8 {[%clk 0:00:06]} 36. Qg4+ {[%clk 0:00:05]}  Kc7 {[%clk 0:00:06]} 37. Rxb4 {[%clk 0:00:05]}  Qe1+ {[%clk 0:00:06]} 38. Bg1 {[%clk 0:00:06]}  Rab8 {[%clk 0:00:04]} 39. Qc4+ {[%clk 0:00:06]}  Kd7 {[%clk 0:00:03]} 40. Qc6+ {[%clk 0:00:06]}  Ke7 {[%clk 0:00:04]} 41. Re4+ {[%clk 0:00:06]}  Qxe4 {[%clk 0:00:04]} 42. Bxe4 {[%clk 0:00:07]}  Nf4 {[%clk 0:00:04]} 43. d6+ {[%clk 0:00:07]}  Ke6 {[%clk 0:00:04]} 44. d7+ {[%clk 0:00:07]}  Ke5 {[%clk 0:00:04]} 45. Qc7+ {[%clk 0:00:06]}  Kxe4 {[%clk 0:00:04]} 46. Bh2 {[%clk 0:00:06]}  Ng6 {[%clk 0:00:03]} 47. Qxb8 {[%clk 0:00:06]}  Rxb8 {[%clk 0:00:02]} 48. Bxb8 {[%clk 0:00:07]} 1-0


[Site "https://www.chess.com"]

[Event "Titled Tuesday Blitz June 28 Late 2022"]
[White "Pakleza, Zbigniew"]
[Black "Jobava, Baadur"]
[WhiteFideId "1119290"]
[BlackFideId "13601520"]
[WhiteElo "2467"]
[BlackElo "2617"]
[Result "1-0"]
[Round "09"]
[TimeControl "180+1"]
[Date "2022.06.28"]
[WhiteClock "0:00:05"]
[BlackClock "0:01:06"]

1. d4 {[%clk 0:02:59]}  Nf6 {[%clk 0:02:58]} 2. Nf3 {[%clk 0:02:57]}  e6 {[%clk 0:02:57]} 3. Bf4 {[%clk 0:02:57]}  b6 {[%clk 0:02:57]} 4. e3 {[%clk 0:02:58]}  Bb7 {[%clk 0:02:58]} 5. h3 {[%clk 0:02:58]}  Bd6 {[%clk 0:02:58]} 6. Bxd6 {[%clk 0:02:58]}  cxd6 {[%clk 0:02:59]} 7. Bd3 {[%clk 0:02:58]}  O-O {[%clk 0:02:59]} 8. Nbd2 {[%clk 0:02:59]}  d5 {[%clk 0:02:58]} 9. O-O {[%clk 0:02:59]}  h6 {[%clk 0:02:57]} 10. Rc1 {[%clk 0:02:59]}  Nc6 {[%clk 0:02:57]} 11. c4 {[%clk 0:02:59]}  Rc8 {[%clk 0:02:53]} 12. a3 {[%clk 0:02:58]}  Qe7 {[%clk 0:02:52]} 13. cxd5 {[%clk 0:02:27]}  Nxd5 {[%clk 0:02:53]} 14. Nc4 {[%clk 0:02:26]}  Rc7 {[%clk 0:02:46]} 15. Qd2 {[%clk 0:02:16]}  Nf6 {[%clk 0:02:38]} 16. Rc2 {[%clk 0:02:13]}  Rfc8 {[%clk 0:02:37]} 17. Rfc1 {[%clk 0:02:13]}  d6 {[%clk 0:02:32]} 18. b4 {[%clk 0:02:07]}  Qd8 {[%clk 0:02:24]} 19. Nb2 {[%clk 0:01:57]}  e5 {[%clk 0:02:20]} 20. b5 {[%clk 0:01:47]}  Na5 {[%clk 0:02:08]} 21. Rxc7 {[%clk 0:01:39]}  Rxc7 {[%clk 0:02:09]} 22. Rxc7 {[%clk 0:01:39]}  Qxc7 {[%clk 0:02:10]} 23. dxe5 {[%clk 0:01:29]}  dxe5 {[%clk 0:02:11]} 24. Qc2 {[%clk 0:01:22]}  Qd6 {[%clk 0:02:10]} 25. Nc4 {[%clk 0:01:17]}  Nxc4 {[%clk 0:02:09]} 26. Bxc4 {[%clk 0:01:16]}  Qxa3 {[%clk 0:02:04]} 27. Qd2 {[%clk 0:00:28]}  Qe7 {[%clk 0:01:57]} 28. Nh4 {[%clk 0:00:28]}  Be4 {[%clk 0:01:52]} 29. Qa2 {[%clk 0:00:19]}  g5 {[%clk 0:01:37]} 30. Nf3 {[%clk 0:00:19]}  Bxf3 {[%clk 0:01:38]} 31. gxf3 {[%clk 0:00:20]}  Kg7 {[%clk 0:01:38]} 32. Kg2 {[%clk 0:00:20]}  e4 {[%clk 0:01:33]} 33. Be2 {[%clk 0:00:18]}  exf3+ {[%clk 0:01:31]} 34. Bxf3 {[%clk 0:00:19]}  Qe5 {[%clk 0:01:29]} 35. Bc6 {[%clk 0:00:13]}  Qc7 {[%clk 0:01:29]} 36. Qd2 {[%clk 0:00:12]}  a5 {[%clk 0:01:29]} 37. Qd4 {[%clk 0:00:12]}  Qa7 {[%clk 0:01:22]} 38. e4 {[%clk 0:00:12]}  Qe7 {[%clk 0:01:10]} 39. Qxb6 {[%clk 0:00:10]}  a4 {[%clk 0:01:09]} 40. Qd4 {[%clk 0:00:10]}  a3 {[%clk 0:01:09]} 41. b6 {[%clk 0:00:10]}  Qe6 {[%clk 0:01:09]} 42. b7 {[%clk 0:00:09]}  Qxc6 {[%clk 0:01:09]} 43. b8=Q {[%clk 0:00:09]}  a2 {[%clk 0:01:10]} 44. Qbe5 {[%clk 0:00:08]}  Qa8 {[%clk 0:01:06]} 45. Qxf6+ {[%clk 0:00:05]} 1-0


[Site "https://www.chess.com"]

[Event "Titled Tuesday Blitz June 28 Late 2022"]
[White "Papp, Levente"]
[Black "Voege, Tobias"]
[WhiteFideId "751243"]
[BlackFideId "1270513"]
[WhiteElo "2308"]
[BlackElo "2379"]
[Result "1-0"]
[Round "09"]
[TimeControl "180+1"]
[Date "2022.06.28"]
[WhiteClock "0:00:43"]
[BlackClock "0:00:47"]

1. c4 {[%clk 0:03:00]}  e5 {[%clk 0:02:58]} 2. Nc3 {[%clk 0:02:59]}  Nf6 {[%clk 0:02:57]} 3. g3 {[%clk 0:02:59]}  c6 {[%clk 0:02:57]} 4. Nf3 {[%clk 0:02:56]}  e4 {[%clk 0:02:56]} 5. Nd4 {[%clk 0:02:57]}  d5 {[%clk 0:02:57]} 6. d3 {[%clk 0:02:52]}  exd3 {[%clk 0:02:38]} 7. Qxd3 {[%clk 0:02:28]}  c5 {[%clk 0:02:33]} 8. Ndb5 {[%clk 0:01:52]}  d4 {[%clk 0:02:31]} 9. Bf4 {[%clk 0:01:47]}  Na6 {[%clk 0:02:25]} 10. O-O-O {[%clk 0:01:42]}  Be6 {[%clk 0:02:14]} 11. Qf3 {[%clk 0:01:26]}  Qd7 {[%clk 0:01:59]} 12. Bg2 {[%clk 0:01:26]}  Be7 {[%clk 0:01:10]} 13. Qxb7 {[%clk 0:01:21]}  O-O {[%clk 0:01:10]} 14. Qxa6 {[%clk 0:01:17]}  Rad8 {[%clk 0:01:00]} 15. Bc6 {[%clk 0:00:57]}  Qc8 {[%clk 0:00:58]} 16. Qxc8 {[%clk 0:00:52]}  Rxc8 {[%clk 0:00:59]} 17. Nd5 {[%clk 0:00:53]}  Bd8 {[%clk 0:00:51]} 18. Nxa7 {[%clk 0:00:48]}  Nxd5 {[%clk 0:00:47]} 19. cxd5 {[%clk 0:00:43]} 1-0


[Site "https://www.chess.com"]

[Event "Titled Tuesday Blitz June 28 Late 2022"]
[White "Pershin, Denis"]
[Black "Ambartsumova, Karina"]
[WhiteFideId "24165506"]
[BlackFideId "4166299"]
[WhiteElo "2275"]
[BlackElo "2262"]
[Result "1-0"]
[Round "09"]
[TimeControl "180+1"]
[Date "2022.06.28"]
[WhiteClock "0:01:34"]
[BlackClock "0:00:36"]

1. d4 {[%clk 0:03:00]}  Nf6 {[%clk 0:02:59]} 2. c4 {[%clk 0:03:01]}  e6 {[%clk 0:02:59]} 3. Nc3 {[%clk 0:03:01]}  d5 {[%clk 0:02:59]} 4. cxd5 {[%clk 0:03:01]}  exd5 {[%clk 0:02:59]} 5. Bg5 {[%clk 0:03:01]}  c6 {[%clk 0:03:00]} 6. Qc2 {[%clk 0:02:59]}  Nbd7 {[%clk 0:03:00]} 7. e3 {[%clk 0:02:59]}  Be7 {[%clk 0:03:00]} 8. Bd3 {[%clk 0:03:00]}  h6 {[%clk 0:03:01]} 9. Bh4 {[%clk 0:03:00]}  Nh5 {[%clk 0:03:01]} 10. Bxe7 {[%clk 0:03:00]}  Qxe7 {[%clk 0:03:02]} 11. Nge2 {[%clk 0:02:59]}  Nb6 {[%clk 0:03:02]} 12. O-O {[%clk 0:02:59]}  O-O {[%clk 0:03:01]} 13. Rae1 {[%clk 0:02:58]}  Re8 {[%clk 0:03:00]} 14. Ng3 {[%clk 0:02:58]}  Nxg3 {[%clk 0:02:53]} 15. hxg3 {[%clk 0:02:58]}  Qg5 {[%clk 0:02:50]} 16. e4 {[%clk 0:02:47]}  dxe4 {[%clk 0:02:20]} 17. Nxe4 {[%clk 0:02:48]}  Qd8 {[%clk 0:02:20]} 18. Nd6 {[%clk 0:02:46]}  Rxe1 {[%clk 0:02:16]} 19. Rxe1 {[%clk 0:02:47]}  Be6 {[%clk 0:02:12]} 20. Bh7+ {[%clk 0:02:41]}  Kh8 {[%clk 0:02:09]} 21. Rxe6 {[%clk 0:02:40]}  Qd7 {[%clk 0:02:01]} 22. Qf5 {[%clk 0:02:26]}  Rf8 {[%clk 0:01:35]} 23. Bg6 {[%clk 0:02:13]}  f6 {[%clk 0:00:59]} 24. Be8 {[%clk 0:01:44]}  Qc7 {[%clk 0:00:56]} 25. Qg6 {[%clk 0:01:38]}  Nd5 {[%clk 0:00:43]} 26. Nf7+ {[%clk 0:01:37]}  Kg8 {[%clk 0:00:40]} 27. Nxh6+ {[%clk 0:01:35]}  Kh8 {[%clk 0:00:40]} 28. Nf7+ {[%clk 0:01:35]}  Kg8 {[%clk 0:00:41]} 29. Qh5 {[%clk 0:01:35]}  Rxf7 {[%clk 0:00:35]} 30. Bxf7+ {[%clk 0:01:34]}  Qxf7 {[%clk 0:00:36]} 31. Re8+ {[%clk 0:01:34]} 1-0


[Site "https://www.chess.com"]

[Event "Titled Tuesday Blitz June 28 Late 2022"]
[White "Popilski, Gil"]
[Black "Bekturov, Tamerlan"]
[WhiteFideId "2809060"]
[BlackFideId "13710184"]
[WhiteElo "2537"]
[BlackElo "2151"]
[Result "1-0"]
[Round "09"]
[TimeControl "180+1"]
[Date "2022.06.28"]
[WhiteClock "0:00:35"]
[BlackClock "0:00:18"]

1. e4 {[%clk 0:03:00]}  c5 {[%clk 0:02:52]} 2. Nf3 {[%clk 0:02:59]}  Nf6 {[%clk 0:02:53]} 3. e5 {[%clk 0:02:57]}  Nd5 {[%clk 0:02:53]} 4. Nc3 {[%clk 0:02:58]}  Nc7 {[%clk 0:02:53]} 5. Ne4 {[%clk 0:02:39]}  b6 {[%clk 0:02:45]} 6. d4 {[%clk 0:02:35]}  cxd4 {[%clk 0:02:44]} 7. Bg5 {[%clk 0:02:30]}  f6 {[%clk 0:02:26]} 8. Bh4 {[%clk 0:01:55]}  Bb7 {[%clk 0:01:48]} 9. Bd3 {[%clk 0:01:45]}  Nc6 {[%clk 0:01:42]} 10. O-O {[%clk 0:01:18]}  Ne6 {[%clk 0:01:37]} 11. Re1 {[%clk 0:01:10]}  Qc7 {[%clk 0:01:30]} 12. exf6 {[%clk 0:01:02]}  gxf6 {[%clk 0:00:34]} 13. Bg3 {[%clk 0:00:58]}  Ne5 {[%clk 0:00:25]} 14. Nxe5 {[%clk 0:00:51]}  fxe5 {[%clk 0:00:26]} 15. Qh5+ {[%clk 0:00:51]}  Kd8 {[%clk 0:00:26]} 16. Bxe5 {[%clk 0:00:50]}  Qc6 {[%clk 0:00:20]} 17. Bxh8 {[%clk 0:00:49]}  Kc7 {[%clk 0:00:18]} 18. Be5+ {[%clk 0:00:46]}  d6 {[%clk 0:00:18]} 19. Bg3 {[%clk 0:00:35]} 1-0


[Site "https://www.chess.com"]